Cogmind - Beta 14 @@@ ROGUE MODE // 2024.11.01 @ 15:07:22 Player: jimmyl Result: Destroyed by Triborg with Siege Cannon Performance ------------- Evolutions (1) 500 Regions Visited (5) 1000 Robots Destroyed (57) 285 Value Destroyed (1531) 1531 Prototype IDs (5) 100 Alien Tech Used (0) 0 Bonus (82) 82 TOTAL SCORE: 3498 Bonus ------- Follower Combat Kills 124 Friendly Fire -42 Cogmind --------- Core Integrity 0/400 Matter 176/300 Energy 100/100 System Corruption 0% Temperature Cool (0) Movement Walking (120) Location -9/Scraptown Parts ------- > --- POWER (1) -------- (None) > --- PROPULSION (3) --- Armored Leg > --- UTILITY (3) ------ Medium Storage Unit Weight Redist. System > --- WEAPON (2) ------- (None) > --- INVENTORY (10) --- Improved Ion Engine Cooled Ion Engine Airjet Cooling System Weight Redist. System Signal Interpreter Autogun Improved Assault Rifle Mini Grenade Launcher Peak State ------------ > --- POWER ------------ Cooled Ion Engine > --- PROPULSION ------- Improved Titanium Leg Armored Leg Compact Wheel > --- UTILITY ---------- Medium Storage Unit Weight Redist. System > --- WEAPON ----------- Improved Assault Rifle Assault Cannon > --- INVENTORY -------- Improved Ion Engine Cooled Ion Engine Airjet Cooling System Weight Redist. System Signal Interpreter Improved Assault Rifle Rocket Launcher Mini Grenade Launcher [Rating: 24] Favorites ----------- Power Cooled Ion Engine Engine Cooled Ion Engine Propulsion Improved Hover Unit Treads Light Treads Leg Improved Titanium Leg Wheel Wheel Hover Unit Improved Hover Unit Utility Medium Storage Unit Device Weight Redist. System Storage Medium Storage Unit Processor Visual Processing Unit Protection Hardened Light Armor Plating Weapon Improved Assault Rifle Energy Gun Improved EM Shotgun Energy Cannon Advanced Beam Cannon Ballistic Gun Improved Assault Rifle Ballistic Cannon Assault Cannon Launcher Mini Grenade Launcher Build | -11 -10 -9 -9 -9 -9 ------- Run | Yrd Mat Mat Sto Rec Scr Slots Evolved 2 | . . 2 . . . Power . | . . . . . . Propulsion 1 | . . 1 . . . Utility 1 | . . 1 . . . Weapon . | . . . . . . Parts Attached 49 | . 10 1 33 1 4 Power 3 | . 1 . 2 . . Engine 3 | . 1 . 2 . . Core . | . . . . . . Reactor . | . . . . . . Propulsion 14 | . 4 1 6 1 2 Treads 2 | . 2 . . . . Leg 2 | . . . . . 2 Wheel 4 | . . . 3 1 . Hover 6 | . 2 1 3 . . Flight . | . . . . . . Utility 11 | . 3 . 8 . . Device 8 | . 1 . 7 . . Storage 1 | . 1 . . . . Processor 1 | . 1 . . . . Hackware . | . . . . . . Protection 1 | . . . 1 . . Artifact . | . . . . . . Weapon 21 | . 2 . 17 . 2 Energy Gun 8 | . . . 8 . . Energy Cannon 1 | . . . 1 . . Ballistic Gun 5 | . 1 . 4 . . Ballistic Cannon 1 | . . . . . 1 Launcher 6 | . 1 . 4 . 1 Special Weapon . | . . . . . . Impact Weapon . | . . . . . . Slashing Weapon . | . . . . . . Piercing Weapon . | . . . . . . Special Melee Weapon . | . . . . . . Unidentified Prototypes 4 | . . . 4 . . Parts Lost 17 | . . . 7 5 5 Power 2 | . . . 1 . 1 Propulsion 9 | . . . 4 3 2 Utility 1 | . . . . 1 . Weapon 5 | . . . 2 1 2 Highest Loss Streak 5 | . . . 3 4 5 To Critical Strikes 1 | . . . 1 . . Average Slot Usage (%) 86 | . 96 88 92 77 72 Engine 11 | . 14 11 10 11 10 Treads 2 | . 19 . . . . Leg 3 | . 5 . . . 17 Wheel 11 | . . . 11 19 10 Hover 8 | . 2 33 16 . . Device 8 | . . . 9 11 11 Storage 11 | . 14 11 11 11 11 Processor 3 | . 10 11 4 . . Protection 4 | . . . 6 7 . Energy Gun 8 | . 14 11 11 7 . Ballistic Gun 9 | . 13 11 9 11 2 Ballistic Cannon 1 | . . . . . 8 Peak Build Rating 24 | . 12 14 21 18 24 Average Rating 16 | . 8 14 17 14 18 On Entrance 11 | 6 6 12 14 18 11 Naked Turns . | . . . . . . Heaviest Build 29 | 13 20 20 29 29 27 Greatest Support 42 | 20 40 21 42 42 42 Greatest Overweight (x) 2 | . 2 . 2 1 . Average Overweight (x) . | . . . . . . Largest Inventory Capacity 10 | . 10 10 10 10 10 Average Capacity 9 | . 9 10 10 10 10 Most Carried 10 | . 10 10 10 9 10 Average Carried 9 | . 7 9 9 8 9 Final Capacity 10 | 8 10 10 10 10 10 Final Carried 10 | 6 10 10 9 8 9 Class Distribution -------------------- 62% | Mutant 37% | Commander-Mutant Dominant Class ---------------- Mutant | -10/Materials Mutant | -9/Materials Mutant | -9/Storage Commander-Mutant | -9/Recycling Commander-Mutant | -9/Scraptown Resources | -11 -10 -9 -9 -9 -9 ----------- Run | Yrd Mat Mat Sto Rec Scr Matter Collected 1051 | 194 98 . 672 86 1 Remotely . | . . . . . . Salvage Created 2242 | . 234 . 1427 314 267 Parts 133 | . 17 . 93 11 12 Haulers Intercepted 4 | . 1 . 3 . . Recyclers Shooed 4 | . . . 4 . . Parts Field Recycled . | . . . . . . Retrieved Matter . | . . . . . . Parts Self-Destructed . | . . . . . . Prevented . | . . . . . . Kills | -11 -10 -9 -9 -9 -9 ------- Run | Yrd Mat Mat Sto Rec Scr Combat Hostiles Destroyed 42 | . 5 . 26 6 5 Guns 33 | . 3 . 26 4 . AOE 9 | . 2 . . 2 5 Classes Destroyed 12 | . 3 . 4 1 4 Worker 4 | . . . 4 . . Hauler 4 | . 1 . 3 . . Recycler 3 | . . . 2 . 1 Watcher 4 | . 2 . 2 . . Swarmer 12 | . . . 12 . . Grunt 10 | . 5 . 3 2 . Duelist 1 | . . . . 1 . Sentry 14 | . . . 11 3 . Federalist 1 | . . . . . 1 Guru 1 | . . . . . 1 Scrapper 2 | . . . . . 2 Tinkerer 1 | . . . . . 1 Thug 1 | . . . . . 1 Best Kill Streak 7 | . 3 . 7 3 6 Combat Bots Only 6 | . 2 . 6 3 5 Max Kills in Single Turn 3 | . 1 . 2 1 3 Gunslinging 1 | . . . 1 . . Exploded 3 | . 1 . . 1 3 Melee . | . . . . . . Uniques/NPCs Destroyed . | . . . . . . Combat | -11 -10 -9 -9 -9 -9 -------- Run | Yrd Mat Mat Sto Rec Scr Hostile Shots Fired 218 | . 19 . 124 37 38 Missed 69 | . 7 . 40 8 14 Damage Taken 2387 | . 209 . 955 480 743 Core 485 | . 12 . 224 67 182 Absorbed by Shields . | . . . . . . Regen/Repaired (Parts) 47 | . . . 47 . . Core Remaining (%) 97 | 100 95 . . . . Volleys Fired 146 | . 22 . 94 19 11 Largest 2 | . 2 . 2 2 2 Hottest 96 | . 60 . 96 68 77 Shots Fired 266 | . 40 . 177 33 16 Gun 237 | . 36 . 168 33 . Cannon 11 | . . . . . 11 Launcher 18 | . 4 . 9 . 5 Special . | . . . . . . Kinetic 123 | . 18 . 76 18 11 Thermal 68 | . 18 . 50 . . Explosive 18 | . 4 . 9 . 5 Electromagnetic 57 | . . . 42 15 . Robot Hit Streak 19 | . 6 . 19 12 2 Robot Miss Streak 6 | . 2 . 6 3 4 Penetration Max . | . . . . . . Secondary Targets 4 | . . . 2 2 . Max Gunslinging Chain 1 | . . . 1 1 . Shots Hit Robots 179 | . 27 . 118 30 4 Core Hits 98 | . 16 . 58 12 12 Critical Kills . | . . . . . . Critical Parts Destroyed . | . . . . . . Critical Strikes 1 | . . . 1 . . Burn 1 | . . . 1 . . Melee Attacks . | . . . . . . Impact . | . . . . . . Slashing . | . . . . . . Piercing . | . . . . . . Sneak Attacks . | . . . . . . Combat Hostiles . | . . . . . . Follow-up Attacks . | . . . . . . Damage Inflicted 3258 | . 530 . 1646 467 615 Guns 2333 | . 327 . 1621 385 . Cannons 75 | . . . . . 75 Explosions 823 | . 203 . . 80 540 Melee . | . . . . . . Ramming 27 | . . . 25 2 . Kinetic 1174 | . 184 . 717 198 75 Thermal 683 | . 143 . 460 80 . Explosive 743 | . 203 . . . 540 Electromagnetic 631 | . . . 444 187 . Impact . | . . . . . . Slashing . | . . . . . . Piercing . | . . . . . . Highest Corruption . | . . . . . . Average Corruption . | . . . . . . Corruption Purged . | . . . . . . Corruption Blocked . | . . . . . . Overload Shots . | . . . . . . Overflow Damage . | . . . . . . Projectiles . | . . . . . . Explosions . | . . . . . . Melee . | . . . . . . Knockbacks 2 | . . . . . 2 Impact . | . . . . . . Kinetic 1 | . . . . . 1 Secondary 1 | . . . . . 1 Self-Inflicted Damage 164 | . 54 . 65 45 . Shots 7 | . 3 . 3 1 . Rammed 5 | . . . 4 1 . Targets Rammed 5 | . . . 4 1 . Kicked . | . . . . . . Crushed . | . . . . . . Highest Temperature 236 | . 45 . 236 103 30 Average Temperature 60 | . 18 . 71 41 15 Received Heat Transfer 561 | . 90 . 198 174 99 Siege Activations . | . . . . . . Robots Corrupted . | . . . . . . Combat Hostiles . | . . . . . . Parts Fried 2 | . . . 1 1 . Impact Corruptions . | . . . . . . Robots Melted . | . . . . . . Combat Hostiles . | . . . . . . Parts Melted 3 | . . . 3 . . Heat Transferred 1510 | . 325 . 1146 39 . Parts Sabotaged . | . . . . . . Parts Stolen . | . . . . . . Parts Stripped . | . . . . . . Power Chain Reactions 3 | . . . 1 2 . Alert | -11 -10 -9 -9 -9 -9 ------- Run | Yrd Mat Mat Sto Rec Scr Peak Influence 332 | . 215 18 291 332 . Initial 80 | . . 18 7 80 . Average 123 | . 54 18 123 182 . Maximum Alert Level 1 | . 1 . 1 1 . Low Security (%) 82 | . 94 100 82 75 . Level 1 17 | . 5 . 17 24 . Level 2 . | . . . . . . Level 3 . | . . . . . . Level 4 . | . . . . . . Level 5 . | . . . . . . High Security . | . . . . . . Max Security . | . . . . . . Squads Dispatched 1 | . 1 . . . . Investigation . | . . . . . . Extermination . | . . . . . . Reinforcement 1 | . 1 . . . . Assault . | . . . . . . Garrison . | . . . . . . Intercept . | . . . . . . Searches Triggered . | . . . . . . Construction Impeded . | . . . . . . Haulers Reinforced . | . . . . . . Active Scanning Responses . | . . . . . . Cargo Convoy Interrupts . | . . . . . . Stealth | -11 -10 -9 -9 -9 -9 --------- Run | Yrd Mat Mat Sto Rec Scr Distress Signals 4 | . 2 . 2 . . Communications Jammed . | . . . . . . Distress Signals . | . . . . . . Times Spotted 56 | . 10 . 29 8 9 Peak Tracking Total 10 | . 3 . 4 5 10 Tactical Retreats 1 | . . . 1 . . Traps | -11 -10 -9 -9 -9 -9 ------- Run | Yrd Mat Mat Sto Rec Scr Traps Triggered 1 | . . . 1 . . Indirectly . | . . . . . . Trap Hack Attempts . | . . . . . . Triggered . | . . . . . . Disarmed . | . . . . . . Reprogrammed . | . . . . . . Reused . | . . . . . . Traps Extracted . | . . . . . . Installed . | . . . . . . Triggered . | . . . . . . Machines | -11 -10 -9 -9 -9 -9 ---------- Run | Yrd Mat Mat Sto Rec Scr Machines Disabled 7 | . 2 . 4 . 1 Max in Single Turn 1 | . 1 . 1 . . Garrison Access 1 | . . . 1 . . Machines Repaired . | . . . . . . Machines Dismantled . | . . . . . . Machines Sabotaged . | . . . . . . Overloaded Fab Kills . | . . . . . . Hacking | -11 -10 -9 -9 -9 -9 --------- Run | Yrd Mat Mat Sto Rec Scr Machines Accessed 18 | . 2 . 6 10 . Terminals 11 | . 2 . 3 6 . Fabricators . | . . . . . . Repair Stations 2 | . . . 2 . . Recycling Units 4 | . . . . 4 . Scanalyzers . | . . . . . . Garrison Access 1 | . . . 1 . . Total Hacks 36 | . 5 . 11 20 . Successful 27 | . 4 . 9 14 . Failed 9 | . 1 . 2 6 . Catastrophic . | . . . . . . Database Lockouts . | . . . . . . Manual 13 | . . . 1 12 . Terminals 26 | . 5 . 6 15 . Fabricators . | . . . . . . Repair Stations 4 | . . . 4 . . Recycling Units 5 | . . . . 5 . Scanalyzers . | . . . . . . Garrison Access 1 | . . . 1 . . Terminal Hacks 13 | . 4 . 4 5 . Robot Schematic 2 | . . . . 2 . Robot Analysis 2 | . . . . 2 . Open Door 2 | . . . 2 . . Branch Access Points 1 | . 1 . . . . Alert Level 1 | . 1 . . . . Unreport Threat 1 | . . . 1 . . Locate Traps 2 | . 1 . 1 . . Hauler Manifests 2 | . 1 . . 1 . Fabricator Hacks . | . . . . . . Repair Station Hacks 4 | . . . 4 . . Scan Component 2 | . . . 2 . . Repair 2 | . . . 2 . . Recycling Unit Hacks . | . . . . . . Scanalyzer . | . . . . . . Garrison Access Hacks 1 | . . . 1 . . Seal Access 1 | . . . 1 . . Unauthorized Hacks 9 | . . . . 9 . Terminals 5 | . . . . 5 . Skim 5 | . . . . 5 . Fabricators . | . . . . . . Repair Stations . | . . . . . . Recycling Units 4 | . . . . 4 . Tunnel 4 | . . . . 4 . Scanalyzers . | . . . . . . Garrison Access . | . . . . . . Data Cores Recovered . | . . . . . . Used . | . . . . . . Hacking Detections 8 | . 2 . 3 3 . Full Trace Events 1 | . . . . 1 . Feedback Events . | . . . . . . Feedback Blocked . | . . . . . . Robot Schematics Acquired 2 | . . . . 2 . Robots Built . | . . . . . . Authchips . | . . . . . . Time . | . . . . . . Total Robot Build Rating . | . . . . . . Part Schematics Acquired 1 | . . . . . 1 Parts Built . | . . . . . . Authchips . | . . . . . . Time . | . . . . . . Total Part Build Rating . | . . . . . . Parts Repaired 2 | . . . 2 . . Time 64 | . . . 64 . . Parts Recycled . | . . . . . . Recycled Matter . | . . . . . . Retrieved Matter . | . . . . . . Retrieved Components . | . . . . . . Parts Scanalyzed . | . . . . . . Part Schematics Acquired . | . . . . . . Parts Damaged . | . . . . . . Bothacking | -11 -10 -9 -9 -9 -9 ------------ Run | Yrd Mat Mat Sto Rec Scr Used RIF Installer . | . . . . . . Robots Hacked . | . . . . . . Non-combat . | . . . . . . Combat . | . . . . . . Robot Hacks Applied . | . . . . . . Relay Couplers Released . | . . . . . . Fabnet Peak Effective % . | . . . . . . Robots Rewired 5 | . . . . 5 . Allies Hacked . | . . . . . . Hacks Repelled . | . . . . . . Allies | -11 -10 -9 -9 -9 -9 -------- Run | Yrd Mat Mat Sto Rec Scr Total Allies 15 | . . . 10 5 . Largest Group 14 | . . . 10 14 13 Highest-Rated Group 148 | . . . 88 148 138 Highest-Rated Ally 34 | . . . 16 34 34 Total Orders 13 | . . . 4 . 9 STAY 9 | . . . . . 9 EXPLORE 4 | . . . 4 . . Ally Attacks 77 | . . . . 20 57 Total Damage 1082 | . . . . 155 927 Kills 5 | . . . . 2 3 Allies Corrupted . | . . . . . . Allies Melted . | . . . . . . Intel | -11 -10 -9 -9 -9 -9 ------- Run | Yrd Mat Mat Sto Rec Scr Robot Analysis Total 2 | . . . . 2 . Derelict Logs Recovered . | . . . . . . Drone Launches 8 | . . . 8 . . Drone Recoveries 3 | . . . 3 . . Exploration | -11 -10 -9 -9 -9 -9 ------------- Run | Yrd Mat Mat Sto Rec Scr Turns Passed 3445 | . 477 24 1719 616 609 Spaces Moved 2377 | 1 265 40 1101 507 463 Core . | . . . . . . Treads 158 | . 158 . . . . Legs 418 | 1 77 . . . 340 Wheels 1255 | . . . 625 507 123 Hover 546 | . 30 40 476 . . Flight . | . . . . . . Fastest Speed 52 | 120 116 52 52 86 100 Average Speed 104 | 120 143 52 94 94 118 Slowest Speed 200 | 120 200 52 180 100 130 Overloaded Moves . | . . . . . . Propulsion Burnouts . | . . . . . . Robots Hopped . | . . . . . . Cave-ins Triggered . | . . . . . . Exploration Rate (%) 50 | 2 53 5 97 99 48 Regions Visited 5 Branch Regions 3 Pre-discovered Areas 8 | . . . . 8 . Known Exits Taken . | . . . . . . Unknown Exits Taken 5 | 1 1 1 1 1 . Scrap Searched 2 | . . . . . 2 Spaces Dug . | . . . . . . Terrain Destroyed 87 | . 7 . 59 6 15 Melee . | . . . . . . Projectile 3 | . . . . . 3 AOE 84 | . 7 . 59 6 12 Terrain Rammed . | . . . . . . Walls Destroyed . | . . . . . . Machines Disabled . | . . . . . . Actions | -11 -10 -9 -9 -9 -9 --------- Run | Yrd Mat Mat Sto Rec Scr Total 3077 | . 325 43 1594 608 507 Wait 414 | . 3 . 329 56 26 Move 2372 | . 264 39 1100 506 463 Hop . | . . . . . . Pick Up 26 | . 13 2 9 . 2 Fast Attach 25 | . 5 . 17 . 3 Attach 14 | . 3 1 8 1 1 Detach 1 | . . . 1 . . Swap 10 | . 2 . 8 . . Drop 33 | . 13 1 18 . 1 Fire 146 | . 22 . 94 19 11 Melee . | . . . . . . Ram 5 | . . . 4 1 . Kick . | . . . . . . Crush . | . . . . . . Escape Stasis 6 | . . . 6 . . Rewire 25 | . . . . 25 . Trap . | . . . . . . Miscellaneous . | . . . . . . Route ------- -11/Scrapyard -10/Materials (discovered 2 exits: [*Mat] / Min) -9/Materials -9/Storage (discovered 2 exits: [*Mat] / *Rec) -9/Recycling (discovered 2 exits: [*Fac] / [*Scr]) -9/Scraptown (discovered 1 exit: [*Fac]) History --------- Turn | Location | Event 1 | -11/Scrapyard | Discovered new exit (range 0) 1 | -11/Scrapyard | Entered Materials 5 | -10/Materials | Identified exit to Mines 313 | -10/Materials | Build established: Mutant 362 | -10/Materials | Discovered new exit (range 12) 478 | -10/Materials | Entered another Materials area 478 | -9/Materials | Evolved 2 slots: Propulsion x1, Utility x1 479 | -9/Materials | Discovered new exit (range 8) 502 | -9/Materials | Entered Storage 1074 | -9/Storage | Repaired Imp. Hover Unit 1235 | -9/Storage | Used back door to open Recycling access 1235 | -9/Storage | Discovered new exit (range 5) 1331 | -9/Storage | Repaired Imp. Hover Unit 1416 | -9/Storage | Discovered new exit (range 16) 1626 | -9/Storage | Lost 3 parts (1p1n1w) 2063 | -9/Storage | Core integrity fell below 50% 2107 | -9/Storage | Assisted by bots powering up and referring to "LRC-V3" 2221 | -9/Storage | Entered Recycling 2221 | -9/Recycling | Accompanied by 10 allies 2412 | -9/Recycling | Build established: Commander-Mutant 2427 | -9/Recycling | Scanned before Scraplab entrance 2465 | -9/Recycling | Discovered new exit (range 9) 2566 | -9/Recycling | Learned location of Zion (-6) 2621 | -9/Recycling | Learned Storage emergency access door positions 2648 | -9/Recycling | Lost 4 parts (2n1u1w) 2731 | -9/Recycling | Learned location of 3 exits from Materials 2768 | -9/Recycling | Learned Storage interactive machine intel 2783 | -9/Recycling | Entered Scraplab 2811 | -9/Recycling | Discovered new exit (range 2) 2837 | -9/Recycling | Entered Scraptown 2837 | -9/Scraptown | Accompanied by 13 allies 3046 | -9/Scraptown | Discovered new exit (range 11) 3113 | -9/Scraptown | Visited TADAMA 3128 | -9/Scraptown | Visited Spacefarers 3184 | -9/Scraptown | Visited Assassins FH 3199 | -9/Scraptown | Visited Fellowship of the Rings 3211 | -9/Scraptown | Visited Cave Peace 3253 | -9/Scraptown | Visited SPCMW 3268 | -9/Scraptown | Visited IN-MT5's Study 3304 | -9/Scraptown | Visited UFD Registry 3391 | -9/Scraptown | Attacked by Scraptown defenders 3441 | -9/Scraptown | Core integrity fell below 20% 3446 | -9/Scraptown | Destroyed by Triborg with Siege Cannon Last Messages --------------- 03438_ KW-VM8(g) destroyed. 03440_ Penetrated by Siege Slug. 03440_ Knocked back. 03440_ Siege Slug penetrates Wall. 03441_ BO-FPA(j) destroyed. 03441_ V4-I8F(j) destroyed. 03441_ 8A-L43(p) destroyed. 03442_ Penetrated by Siege Slug. 03442_ Rocket Launcher destroyed. 03442_ Knocked back. 03444_ 2L-E2B(M) suffers critical hit (Burn). 03444_ Penetrated by Siege Slug. 03444_ Imp. Titanium Leg destroyed. 03444_ Assault Cannon destroyed. 03444_ Knocked back. 03444_ Penetrated by Siege Slug. 03444_ Siege Slug penetrates CW-2XS(c). 03444_ CW-2XS(c) knocked back. 03446_ 2L-E2B(M) destroyed. 03446_ Penetrated by Siege Slug. Map ----- +----------------------------------------------------+ | #?????????????????? | | #?????????????????? | | ##### ##########"" """"#####?????????????????? | | ????## ##????????#" "#?????????????????????? | | #????# #########?#" ""#?????????????????????? | | ? ???# """"""""#?#" """#?????????????????????? | | ## ### " ""#?#" """#?????????????????????? | | "" """ "#?#"""""""#?????????????????????? | | " """ " ""#?#########?????????????????????? | | " " """"""""#???????????????????????????????? | | " ##"""####???????####????????????????????? | | " "" " #?############? ?????????????????? | | " " #??##"" "" ""# """""" ????????????????? | | """""" #??# " %"# "" "" ????????????????? | | ###### #??###" % " " #???????????????? | | ?????# #??# " " " #???????????????? | | ###### #??# " ""# "r " ????????????????? | | #??# " "# " " ????????????????? | | #??# " # "" "" #???????????????? | | ###### #?##""" % # """""" #???????????????? | | ????# ### ## % ##???????????????? | | ???### ## # # ####;c######;###?????????????? | | #### g%!% =% #?????????????? | | " # =%[ % #?????????????? | | # % % #?????????????? | | # @ % #?????????????? | | # % #?????????????? | | # " # ######## #?????????????? | | # # ???????# #?????????????? | | # # ???????# #?????????????? | | # # #?????# #?????????????? | | # #?????# #?????????????? | | # # """"" #?????# #?????????????? | | " # " """"" #?????# ###???????????? | | #### # """"" #?????# ""#"#?????????? | | ???# # #?????# """"#?????????? | | ???# # ??? #?????# ""###?????????? | | ???# ###???????#?????# = ###???????????? | | ???# #???????????????# [% #####?????????? | | ??# #???????????????# [%= "?????????? | | ??# #???????????????# = "?????????? | | ?# #???????????????#=%[*% =* "?????????? | | ?# #???????????????#=%[ = "?????????? | | # ################# = "?????????? | | # "?????????? | | "?????????? | | # "?????????? | | " # "?????????? | | #### "?????????? | | #"?????????? | +----------------------------------------------------+ Best States ------------- Heat Dissipation 38 Energy Generation 14 Energy Capacity 280 Matter Stores 300 Matter Capacity 300 Sight Range 18 Terrain Scan Range 14 Terrain Scan Density 10 Additional Mass Support 6 Armor Coverage 150 Evasion (%) 55 Recoil Reduction 2 Item Schematics ----------------- IN-MT5's Pitchfork "Insurrection" | -9/Scraptown | Archive Robot Schematics ------------------ G-34 Mercenary | -9/Recycling | Hacked Y-45 Defender | -9/Recycling | Hacked Fabricated ------------ Nothing Alien Tech Used ----------------- None Achievements -------------- None Challenges ------------ None Game ------ Seed AbsorptionRestorationWand Manual? 0 Play Time 00:23:35 Cumulative 147.6 hours Start 2024.11.01 @ 14:43:49 End 2024.11.01 @ 15:07:22 Sessions 1 Manual Loads 0 Difficulty Rogue Special Mode None Game No. 245 Rogue 244 Adventurer 1 Explorer 0 Win Type - Total 2 Types 2/0/0/0/0/0/0/0/0 Lore% 73 Gallery% 70 Achievement% 52 Wizard Run 0 Options --------- Layout 1 ASCII 0 Keyboard 0 Movement Mouse Keybinds 0 Fullscreen 2 Font 20/SmallcapsGlow Map View 54x42 Zoom Use 0% Tactical HUD 1 Map Filters NONE Filters NONE Steam 0 RUN: e5a2462c-2f6d-4595-96e6-8feed453aaeb